[Event "*** Titled Tuesday Blitz"]
[Site "Chess.com"]
[Date "2020.10.20"]
[Round "1"]
[White "GelmanAlexander"]
[Black "annamaja"]
[Result "1-0"]
[WhiteElo "2600"]
[BlackElo "2273"]
[TimeControl "180+1"]
[EndTime "10:06:46 PDT"]
[Termination "GelmanAlexander won by resignation"]

1. d4 {[%clk 0:03:00.3]} 1... d5 {[%clk 0:03:00]} 2. Nc3 {[%clk 0:02:59.8]} 2...
Nf6 {[%clk 0:02:58.2]} 3. Bf4 {[%clk 0:02:59.5]} 3... c6 {[%clk 0:02:57.2]} 4.
f3 {[%clk 0:02:59.3]} 4... Bf5 {[%clk 0:02:54.5]} 5. g4 {[%clk 0:02:58.9]} 5...
Bg6 {[%clk 0:02:54]} 6. h4 {[%clk 0:02:59.1]} 6... h6 {[%clk 0:02:53.5]} 7. e3
{[%clk 0:02:58.6]} 7... e6 {[%clk 0:02:49.5]} 8. Nge2 {[%clk 0:02:58.4]} 8...
Bd6 {[%clk 0:02:48.8]} 9. Qd2 {[%clk 0:02:58.1]} 9... Qe7 {[%clk 0:02:41.7]} 10.
O-O-O {[%clk 0:02:57.7]} 10... Nbd7 {[%clk 0:02:40.3]} 11. Bxd6 {[%clk
0:02:57.2]} 11... Qxd6 {[%clk 0:02:39.6]} 12. Nf4 {[%clk 0:02:57.6]} 12... Bh7
{[%clk 0:02:33.6]} 13. g5 {[%clk 0:02:57.3]} 13... Ng8 {[%clk 0:02:31.5]} 14. e4
{[%clk 0:02:54]} 14... O-O-O {[%clk 0:02:21]} 15. Rg1 {[%clk 0:02:50.8]} 15...
hxg5 {[%clk 0:02:12.1]} 16. Rxg5 {[%clk 0:02:50.4]} 16... Qf8 {[%clk 0:02:00.9]}
17. exd5 {[%clk 0:02:44.5]} 17... exd5 {[%clk 0:01:58.7]} 18. Nfxd5 {[%clk
0:02:06.2]} 18... f6 {[%clk 0:01:50.1]} 19. Qf4 {[%clk 0:01:49.4]} 19... Ne5
{[%clk 0:01:33]} 20. Bh3+ {[%clk 0:01:19.7]} 20... f5 {[%clk 0:00:55.6]} 21.
Qxe5 {[%clk 0:00:59.8]} 21... cxd5 {[%clk 0:00:52.3]} 22. Rxf5 {[%clk
0:00:57.4]} 22... Bxf5 {[%clk 0:00:34.1]} 23. Bxf5+ {[%clk 0:00:57]} 23... Rd7
{[%clk 0:00:34.6]} 24. Nxd5 {[%clk 0:00:53.8]} 24... Qd8 {[%clk 0:00:20.4]} 25.
Rd3 {[%clk 0:00:51.9]} 25... Rh6 {[%clk 0:00:18.7]} 26. Qxg7 {[%clk 0:00:34.6]}
26... Rc6 {[%clk 0:00:14]} 27. Bxd7+ {[%clk 0:00:34.4]} 27... Qxd7 {[%clk
0:00:12.6]} 28. Qxg8+ {[%clk 0:00:35]} 28... Qd8 {[%clk 0:00:10.6]} 29. Qxd8+
{[%clk 0:00:33.3]} 29... Kxd8 {[%clk 0:00:11.5]} 30. Re3 {[%clk 0:00:31]} 30...
Rd6 {[%clk 0:00:09.4]} 31. c4 {[%clk 0:00:30.6]} 31... b5 {[%clk 0:00:09.3]} 32.
b3 {[%clk 0:00:30.4]} 32... bxc4 {[%clk 0:00:09.6]} 33. bxc4 {[%clk 0:00:31.3]}
33... Rc6 {[%clk 0:00:10]} 34. c5 {[%clk 0:00:29.9]} 1-0

[Event "*** Titled Tuesday Blitz"]
[Site "Chess.com"]
[Date "2020.10.20"]
[Round "1"]
[White "Korchmar_Vasiliy"]
[Black "GM4life"]
[Result "0-1"]
[WhiteElo "2606"]
[BlackElo "2310"]
[TimeControl "180+1"]
[EndTime "10:06:52 PDT"]
[Termination "GM4life won on time"]

1. d4 {[%clk 0:02:58.8]} 1... Nf6 {[%clk 0:02:58.6]} 2. Nf3 {[%clk 0:02:58.2]}
2... d5 {[%clk 0:02:58.1]} 3. Bf4 {[%clk 0:02:53.2]} 3... c5 {[%clk 0:02:53.9]}
4. e3 {[%clk 0:02:53]} 4... Nc6 {[%clk 0:02:53.7]} 5. Nbd2 {[%clk 0:02:52.9]}
5... Qb6 {[%clk 0:02:51.9]} 6. dxc5 {[%clk 0:02:52.9]} 6... Qxb2 {[%clk
0:02:51.5]} 7. Rb1 {[%clk 0:02:52.7]} 7... Qc3 {[%clk 0:02:51.9]} 8. Bb5 {[%clk
0:02:49.4]} 8... g6 {[%clk 0:02:49.6]} 9. Be5 {[%clk 0:02:39.1]} 9... Qxc5
{[%clk 0:02:47.9]} 10. Bxf6 {[%clk 0:01:34.1]} 10... exf6 {[%clk 0:02:45.2]} 11.
c4 {[%clk 0:01:21.8]} 11... Be7 {[%clk 0:02:37.2]} 12. O-O {[%clk 0:01:18.6]}
12... O-O {[%clk 0:02:36.3]} 13. Nb3 {[%clk 0:01:18.7]} 13... Qb6 {[%clk
0:02:30.5]} 14. Bxc6 {[%clk 0:00:55.1]} 14... bxc6 {[%clk 0:02:25]} 15. cxd5
{[%clk 0:00:55.4]} 15... cxd5 {[%clk 0:02:23.4]} 16. Qxd5 {[%clk 0:00:56.3]}
16... Be6 {[%clk 0:02:23.5]} 17. Qd4 {[%clk 0:00:52.6]} 17... Qa6 {[%clk
0:02:18.7]} 18. Nc5 {[%clk 0:00:49.8]} 18... Bxc5 {[%clk 0:02:18.3]} 19. Qxc5
{[%clk 0:00:50.7]} 19... Qxa2 {[%clk 0:02:18.1]} 20. Nd4 {[%clk 0:00:37.5]}
20... Qd5 {[%clk 0:02:16.5]} 21. Qa3 {[%clk 0:00:35.2]} 21... Bc8 {[%clk
0:01:50.2]} 22. Rb5 {[%clk 0:00:25.4]} 22... Qe4 {[%clk 0:01:43.8]} 23. Rfb1
{[%clk 0:00:22.1]} 23... Rd8 {[%clk 0:01:29.2]} 24. h3 {[%clk 0:00:19.8]} 24...
Bd7 {[%clk 0:01:22.7]} 25. Rb7 {[%clk 0:00:19.4]} 25... Bc8 {[%clk 0:00:58]} 26.
R7b4 {[%clk 0:00:10.8]} 26... a5 {[%clk 0:00:53.3]} 27. Rb6 {[%clk 0:00:08.7]}
27... Ba6 {[%clk 0:00:51]} 28. Rc1 {[%clk 0:00:04.7]} 28... Bb7 {[%clk 0:00:48]}
29. f3 {[%clk 0:00:04]} 29... Qd5 {[%clk 0:00:45.4]} 30. Rc5 {[%clk 0:00:04.1]}
30... Qd7 {[%clk 0:00:43.9]} 31. Rxf6 {[%clk 0:00:04.1]} 31... Re8 {[%clk
0:00:35.9]} 32. Rb6 {[%clk 0:00:03.5]} 32... Rad8 {[%clk 0:00:34]} 33. Rxa5
{[%clk 0:00:02]} 33... Qc7 {[%clk 0:00:32.6]} 0-1

[Event "*** Titled Tuesday Blitz"]
[Site "Chess.com"]
[Date "2020.10.20"]
[Round "1"]
[White "kinga2008"]
[Black "Angel_Hranitel_37"]
[Result "1-0"]
[WhiteElo "2186"]
[BlackElo "2503"]
[TimeControl "180+1"]
[EndTime "10:06:52 PDT"]
[Termination "kinga2008 won by checkmate"]

1. e4 {[%clk 0:02:53.2]} 1... c5 {[%clk 0:02:59.9]} 2. Nf3 {[%clk 0:02:12.5]}
2... e6 {[%clk 0:02:59.6]} 3. c3 {[%clk 0:02:08.9]} 3... d5 {[%clk 0:02:59.4]}
4. e5 {[%clk 0:02:04]} 4... d4 {[%clk 0:02:59.7]} 5. cxd4 {[%clk 0:02:02.8]}
5... cxd4 {[%clk 0:03:00.6]} 6. Bd3 {[%clk 0:01:59.1]} 6... Nc6 {[%clk
0:02:59.4]} 7. O-O {[%clk 0:01:53.4]} 7... Nge7 {[%clk 0:02:59]} 8. a3 {[%clk
0:01:50.8]} 8... Ng6 {[%clk 0:02:58.7]} 9. Re1 {[%clk 0:01:44.7]} 9... Qc7
{[%clk 0:02:58.6]} 10. Bxg6 {[%clk 0:01:34.9]} 10... hxg6 {[%clk 0:02:59.5]} 11.
d3 {[%clk 0:01:35.6]} 11... g5 {[%clk 0:02:50.3]} 12. Bxg5 {[%clk 0:01:30.6]}
12... a5 {[%clk 0:02:47]} 13. Nbd2 {[%clk 0:01:25.9]} 13... Be7 {[%clk
0:02:46.6]} 14. Bxe7 {[%clk 0:01:24.6]} 14... Qxe7 {[%clk 0:02:47.5]} 15. Nc4
{[%clk 0:01:25]} 15... O-O {[%clk 0:02:46.4]} 16. Qe2 {[%clk 0:01:23.1]} 16...
b5 {[%clk 0:02:43.2]} 17. Nd6 {[%clk 0:01:17.2]} 17... f5 {[%clk 0:01:50.1]} 18.
Nxb5 {[%clk 0:01:03.3]} 18... Ba6 {[%clk 0:01:50.1]} 19. Nd6 {[%clk 0:01:01.6]}
19... Rab8 {[%clk 0:01:41.5]} 20. Rac1 {[%clk 0:00:57.1]} 20... Qd7 {[%clk
0:01:41.2]} 21. Qd2 {[%clk 0:00:49.8]} 21... Nxe5 {[%clk 0:01:36.9]} 22. Rxe5
{[%clk 0:00:38.4]} 22... Qxd6 {[%clk 0:01:36.9]} 23. Rxa5 {[%clk 0:00:34.2]}
23... Bb7 {[%clk 0:01:32.4]} 24. Ne5 {[%clk 0:00:24.8]} 24... Bd5 {[%clk
0:01:26.3]} 25. Qf4 {[%clk 0:00:18.4]} 25... Rxb2 {[%clk 0:01:23.3]} 26. Qxd4
{[%clk 0:00:17.1]} 26... Re2 {[%clk 0:01:17.7]} 27. Nc4 {[%clk 0:00:14.7]} 27...
Qc7 {[%clk 0:01:14.7]} 28. Ra7 {[%clk 0:00:08.7]} 28... Rc8 {[%clk 0:00:55.6]}
29. Rxc7 {[%clk 0:00:06.1]} 29... Rxc7 {[%clk 0:00:56.5]} 30. Qf4 {[%clk
0:00:03.5]} 30... Rb7 {[%clk 0:00:57.4]} 31. Qg3 {[%clk 0:00:02.5]} 31... Ra2
{[%clk 0:00:58]} 32. h3 {[%clk 0:00:01.7]} 32... Rb3 {[%clk 0:00:56.6]} 33. Ne5
{[%clk 0:00:01.8]} 33... Kf8 {[%clk 0:00:55.9]} 34. Rc7 {[%clk 0:00:02.3]} 34...
g5 {[%clk 0:00:51.9]} 35. Qxg5 {[%clk 0:00:02.4]} 35... Rb7 {[%clk 0:00:52.8]}
36. Qf6+ {[%clk 0:00:02.5]} 36... Kg8 {[%clk 0:00:53.7]} 37. Qf7+ {[%clk
0:00:02.7]} 37... Kh8 {[%clk 0:00:54]} 38. Qh7# {[%clk 0:00:03.3]} 1-0

[Event "*** Titled Tuesday Blitz"]
[Site "Chess.com"]
[Date "2020.10.20"]
[Round "1"]
[White "SuchMisfortune"]
[Black "boasovietica"]
[Result "1-0"]
[WhiteElo "2764"]
[BlackElo "2378"]
[TimeControl "180+1"]
[EndTime "10:06:54 PDT"]
[Termination "SuchMisfortune won by resignation"]

1. Nf3 {[%clk 0:03:00.7]} 1... c5 {[%clk 0:02:56.4]} 2. c4 {[%clk 0:02:56.2]}
2... Nc6 {[%clk 0:02:55.8]} 3. b3 {[%clk 0:02:53.6]} 3... e5 {[%clk 0:02:55]} 4.
Bb2 {[%clk 0:02:52.5]} 4... d6 {[%clk 0:02:54.9]} 5. e3 {[%clk 0:02:43.1]} 5...
g6 {[%clk 0:02:54.7]} 6. d4 {[%clk 0:02:41.1]} 6... exd4 {[%clk 0:02:52.5]} 7.
exd4 {[%clk 0:02:42]} 7... Bg7 {[%clk 0:02:52.5]} 8. Na3 {[%clk 0:02:35.3]} 8...
Nge7 {[%clk 0:02:39]} 9. Qd2 {[%clk 0:02:22.2]} 9... O-O {[%clk 0:02:17.9]} 10.
Be2 {[%clk 0:02:14.6]} 10... Nf5 {[%clk 0:02:11.7]} 11. dxc5 {[%clk 0:02:11.2]}
11... Bxb2 {[%clk 0:02:10.5]} 12. Qxb2 {[%clk 0:02:08.9]} 12... Qa5+ {[%clk
0:02:06]} 13. Kf1 {[%clk 0:01:57.4]} 13... dxc5 {[%clk 0:02:04]} 14. Nb5 {[%clk
0:01:54.7]} 14... a6 {[%clk 0:01:57.7]} 15. Nc3 {[%clk 0:01:52.9]} 15... Be6
{[%clk 0:01:38.8]} 16. Ne4 {[%clk 0:01:50.7]} 16... Nfd4 {[%clk 0:01:33.9]} 17.
Nxd4 {[%clk 0:01:37.8]} 17... Nxd4 {[%clk 0:01:33]} 18. h4 {[%clk 0:01:25.8]}
18... Rad8 {[%clk 0:01:23.1]} 19. h5 {[%clk 0:01:23]} 19... Bf5 {[%clk 0:01:21]}
20. Nf6+ {[%clk 0:01:20.4]} 20... Kg7 {[%clk 0:01:19.1]} 21. Nd5 {[%clk
0:01:19.4]} 21... Be4 {[%clk 0:01:02.1]} 22. h6+ {[%clk 0:01:12.2]} 22... Kh8
{[%clk 0:00:58.9]} 23. Bf3 {[%clk 0:01:07.9]} 23... Bxf3 {[%clk 0:00:35.5]} 24.
gxf3 {[%clk 0:01:08.8]} 24... Rfe8 {[%clk 0:00:35.8]} 25. Rh4 {[%clk 0:01:02.5]}
25... Re2 {[%clk 0:00:10.6]} 26. Qc1 {[%clk 0:00:49.6]} 26... Rde8 {[%clk
0:00:07.6]} 27. Rxd4 {[%clk 0:00:38.1]} 27... cxd4 {[%clk 0:00:07.3]} 28. Qf4
{[%clk 0:00:38.2]} 28... R2e6 {[%clk 0:00:02.6]} 29. Qxd4+ {[%clk 0:00:37.3]}
29... f6 {[%clk 0:00:02.8]} 30. Nxf6 {[%clk 0:00:31.7]} 30... Re1+ {[%clk
0:00:02.1]} 31. Kg2 {[%clk 0:00:29.5]} 31... Qg5+ {[%clk 0:00:02.2]} 32. Ng4+
{[%clk 0:00:29.6]} 1-0

[Event "*** Titled Tuesday Blitz"]
[Site "Chess.com"]
[Date "2020.10.20"]
[Round "1"]
[White "Goryachkina"]
[Black "chessmachine14"]
[Result "1-0"]
[WhiteElo "2659"]
[BlackElo "2323"]
[TimeControl "180+1"]
[EndTime "10:06:55 PDT"]
[Termination "Goryachkina won by resignation"]

1. e4 {[%clk 0:02:59.3]} 1... c5 {[%clk 0:02:58.8]} 2. Nf3 {[%clk 0:02:59]} 2...
e6 {[%clk 0:02:57.1]} 3. c3 {[%clk 0:02:58.5]} 3... Nf6 {[%clk 0:02:56.2]} 4. e5
{[%clk 0:02:58.1]} 4... Nd5 {[%clk 0:02:56.3]} 5. Bc4 {[%clk 0:02:58.3]} 5...
Nb6 {[%clk 0:02:54.7]} 6. Bb3 {[%clk 0:02:58.3]} 6... c4 {[%clk 0:02:52.9]} 7.
Bc2 {[%clk 0:02:57.4]} 7... d6 {[%clk 0:02:34.8]} 8. exd6 {[%clk 0:02:57]} 8...
e5 {[%clk 0:02:34.8]} 9. O-O {[%clk 0:02:50.5]} 9... Bxd6 {[%clk 0:02:32.3]} 10.
d3 {[%clk 0:02:48.2]} 10... O-O {[%clk 0:02:21.5]} 11. dxc4 {[%clk 0:02:47.7]}
11... Bg4 {[%clk 0:01:42.6]} 12. Qd3 {[%clk 0:02:17.3]} 12... f5 {[%clk
0:01:33.7]} 13. c5 {[%clk 0:02:14.2]} 13... e4 {[%clk 0:01:18]} 14. Qxd6 {[%clk
0:02:13.9]} 14... Qxd6 {[%clk 0:01:18]} 15. cxd6 {[%clk 0:02:14.2]} 15... exf3
{[%clk 0:01:18.3]} 16. Bb3+ {[%clk 0:01:52.9]} 16... Kh8 {[%clk 0:01:17.4]} 17.
Bf4 {[%clk 0:01:52.6]} 17... N8d7 {[%clk 0:01:03.2]} 18. Nd2 {[%clk 0:01:50.7]}
18... fxg2 {[%clk 0:01:02.1]} 19. Kxg2 {[%clk 0:01:51]} 19... Nf6 {[%clk
0:00:50.1]} 20. h3 {[%clk 0:01:49.1]} 20... Bh5 {[%clk 0:00:49.7]} 21. Rfe1
{[%clk 0:01:45.1]} 21... Be8 {[%clk 0:00:49.1]} 22. Nc4 {[%clk 0:01:25]} 22...
Bc6+ {[%clk 0:00:49.2]} 23. Kh2 {[%clk 0:01:23.4]} 23... Nxc4 {[%clk 0:00:47.2]}
24. Bxc4 {[%clk 0:01:23.4]} 24... Rad8 {[%clk 0:00:41.3]} 25. Re7 {[%clk
0:01:21.3]} 25... Ne8 {[%clk 0:00:14.6]} 26. Rd1 {[%clk 0:01:15.2]} 26... Rf6
{[%clk 0:00:14.4]} 27. Be5 {[%clk 0:01:04.8]} 27... Rh6 {[%clk 0:00:13.7]} 28.
Bd5 {[%clk 0:00:52.2]} 28... Bxd5 {[%clk 0:00:13.3]} 29. Rxd5 {[%clk 0:00:52.4]}
29... Nf6 {[%clk 0:00:11.9]} 30. Bxf6 {[%clk 0:00:50.9]} 30... Rxf6 {[%clk
0:00:11.4]} 31. Rxb7 {[%clk 0:00:50.8]} 31... g6 {[%clk 0:00:09.5]} 32. d7
{[%clk 0:00:48.7]} 32... Rf7 {[%clk 0:00:09.4]} 33. c4 {[%clk 0:00:45.8]} 33...
a6 {[%clk 0:00:08.9]} 34. c5 {[%clk 0:00:46]} 34... Rf6 {[%clk 0:00:09.1]} 35.
Rb6 {[%clk 0:00:40.9]} 35... Rf7 {[%clk 0:00:05.7]} 36. c6 {[%clk 0:00:41.1]}
36... f4 {[%clk 0:00:03.9]} 37. c7 {[%clk 0:00:40.4]} 1-0

[Event "*** Titled Tuesday Blitz"]
[Site "Chess.com"]
[Date "2020.10.20"]
[Round "1"]
[White "mr_gustavo"]
[Black "eljanov"]
[Result "0-1"]
[WhiteElo "2434"]
[BlackElo "2880"]
[TimeControl "180+1"]
[EndTime "10:06:57 PDT"]
[Termination "eljanov won by resignation"]

1. e4 {[%clk 0:03:00.1]} 1... c6 {[%clk 0:02:58.3]} 2. d4 {[%clk 0:02:59.2]}
2... d5 {[%clk 0:02:59.2]} 3. Nc3 {[%clk 0:02:58.4]} 3... dxe4 {[%clk 0:02:59]}
4. Nxe4 {[%clk 0:02:59.3]} 4... Bf5 {[%clk 0:02:59.5]} 5. Ng3 {[%clk 0:02:58.6]}
5... Bg6 {[%clk 0:02:59.8]} 6. Nh3 {[%clk 0:02:57.3]} 6... Nf6 {[%clk 0:02:57]}
7. Nf4 {[%clk 0:02:56.8]} 7... Nbd7 {[%clk 0:02:56.7]} 8. h4 {[%clk 0:02:55]}
8... e5 {[%clk 0:02:54.4]} 9. Nxg6 {[%clk 0:02:31.7]} 9... hxg6 {[%clk
0:02:54.3]} 10. dxe5 {[%clk 0:02:31.8]} 10... Nxe5 {[%clk 0:02:39.3]} 11. Bf4
{[%clk 0:02:19.1]} 11... Qa5+ {[%clk 0:02:10.9]} 12. c3 {[%clk 0:02:08.6]} 12...
Be7 {[%clk 0:01:56.8]} 13. b4 {[%clk 0:01:45.7]} 13... Qc7 {[%clk 0:01:55.5]}
14. Qd4 {[%clk 0:01:25]} 14... Bd6 {[%clk 0:01:50.5]} 15. Rd1 {[%clk 0:00:50.9]}
15... Nf3+ {[%clk 0:01:43.2]} 16. gxf3 {[%clk 0:00:51.8]} 16... Bxf4 {[%clk
0:01:43.5]} 17. Ne2 {[%clk 0:00:43.5]} 17... Be5 {[%clk 0:01:40]} 18. Qc5 {[%clk
0:00:21.1]} 18... b6 {[%clk 0:01:36]} 19. Qe3 {[%clk 0:00:17.6]} 19... O-O
{[%clk 0:01:28.3]} 20. f4 {[%clk 0:00:17.8]} 20... Bd6 {[%clk 0:01:27]} 21. Bg2
{[%clk 0:00:16.1]} 21... Rfe8 {[%clk 0:01:26.2]} 22. Qf3 {[%clk 0:00:16.6]}
22... Qe7 {[%clk 0:01:09.9]} 23. Kf1 {[%clk 0:00:14.8]} 23... Rad8 {[%clk
0:01:08.4]} 24. Re1 {[%clk 0:00:12.5]} 24... Nh5 {[%clk 0:01:06.8]} 25. Kg1
{[%clk 0:00:02.3]} 25... Nxf4 {[%clk 0:01:05.6]} 26. Bf1 {[%clk 0:00:02.8]}
26... Nd3 {[%clk 0:00:55.8]} 27. Qxd3 {[%clk 0:00:01.8]} 27... Bh2+ {[%clk
0:00:55.2]} 28. Rxh2 {[%clk 0:00:02.7]} 28... Rxd3 {[%clk 0:00:55.5]} 29. Rg2
{[%clk 0:00:02.8]} 29... Qf6 {[%clk 0:00:53.1]} 30. Nf4 {[%clk 0:00:01.8]} 30...
Rxe1 {[%clk 0:00:51.7]} 31. Nxd3 {[%clk 0:00:02.3]} 31... Ra1 {[%clk 0:00:48.4]}
32. f4 {[%clk 0:00:01.8]} 32... Qxc3 {[%clk 0:00:46.2]} 33. Rg3 {[%clk
0:00:01.6]} 33... Qd4+ {[%clk 0:00:44.8]} 34. Kg2 {[%clk 0:00:01.5]} 34... Rxa2+
{[%clk 0:00:43.7]} 35. Kh3 {[%clk 0:00:01.8]} 35... a5 {[%clk 0:00:42.1]} 36.
bxa5 {[%clk 0:00:01.7]} 36... bxa5 {[%clk 0:00:43]} 37. h5 {[%clk 0:00:02.3]}
37... gxh5 {[%clk 0:00:42.9]} 38. f5 {[%clk 0:00:02.8]} 38... a4 {[%clk
0:00:42.2]} 39. Be2 {[%clk 0:00:01.5]} 39... Rxe2 {[%clk 0:00:40]} 0-1

[Event "*** Titled Tuesday Blitz"]
[Site "Chess.com"]
[Date "2020.10.20"]
[Round "1"]
[White "Loy_Konstantin"]
[Black "XDPS"]
[Result "0-1"]
[WhiteElo "2364"]
[BlackElo "2726"]
[TimeControl "180+1"]
[EndTime "10:07:00 PDT"]
[Termination "XDPS won on time"]

1. e4 {[%clk 0:02:57.7]} 1... c5 {[%clk 0:02:50.6]} 2. Nf3 {[%clk 0:02:56.9]}
2... d6 {[%clk 0:02:47.2]} 3. d4 {[%clk 0:02:56.9]} 3... cxd4 {[%clk 0:02:46.1]}
4. Qxd4 {[%clk 0:02:57.8]} 4... a6 {[%clk 0:02:45.7]} 5. c4 {[%clk 0:02:57]}
5... Nc6 {[%clk 0:02:45.5]} 6. Qd3 {[%clk 0:02:56.6]} 6... g6 {[%clk 0:02:45.4]}
7. Nc3 {[%clk 0:02:55]} 7... Bg7 {[%clk 0:02:45.8]} 8. Be2 {[%clk 0:02:53.5]}
8... Nf6 {[%clk 0:02:46.1]} 9. Be3 {[%clk 0:02:52.8]} 9... Bg4 {[%clk
0:02:46.2]} 10. O-O {[%clk 0:02:00]} 10... O-O {[%clk 0:02:43.6]} 11. Rac1
{[%clk 0:01:51.4]} 11... Bxf3 {[%clk 0:02:39.8]} 12. Bxf3 {[%clk 0:01:50.8]}
12... Qa5 {[%clk 0:02:40.4]} 13. b3 {[%clk 0:01:40.1]} 13... Nd7 {[%clk
0:02:39.8]} 14. Rfd1 {[%clk 0:01:26.3]} 14... Nde5 {[%clk 0:02:33.9]} 15. Qd2
{[%clk 0:01:23]} 15... Nxf3+ {[%clk 0:02:32.6]} 16. gxf3 {[%clk 0:01:23.9]}
16... Qh5 {[%clk 0:02:31.8]} 17. Qe2 {[%clk 0:01:09.7]} 17... Ne5 {[%clk
0:02:12]} 18. Kg2 {[%clk 0:01:08.8]} 18... Qh4 {[%clk 0:01:46.1]} 19. h3 {[%clk
0:00:53.9]} 19... f5 {[%clk 0:01:28.5]} 20. f4 {[%clk 0:00:36.4]} 20... Nc6
{[%clk 0:01:27.9]} 21. f3 {[%clk 0:00:27.7]} 21... e5 {[%clk 0:01:17.5]} 22. Qf2
{[%clk 0:00:20.6]} 22... Qh5 {[%clk 0:01:16.9]} 23. Qg3 {[%clk 0:00:17.1]} 23...
Bh6 {[%clk 0:01:07.4]} 24. Nd5 {[%clk 0:00:15.1]} 24... Rae8 {[%clk 0:01:00.4]}
25. Rf1 {[%clk 0:00:09.4]} 25... Bg7 {[%clk 0:00:31.5]} 26. Rce1 {[%clk
0:00:09.3]} 26... b5 {[%clk 0:00:22]} 27. Kh2 {[%clk 0:00:09.3]} 27... bxc4
{[%clk 0:00:21.8]} 28. bxc4 {[%clk 0:00:10.2]} 28... Rb8 {[%clk 0:00:21.3]} 29.
Re2 {[%clk 0:00:09.4]} 29... fxe4 {[%clk 0:00:21]} 30. fxe4 {[%clk 0:00:08.5]}
30... Qxe2+ {[%clk 0:00:20.9]} 31. Rf2 {[%clk 0:00:07.1]} 31... Qxc4 {[%clk
0:00:19.9]} 0-1

[Event "*** Titled Tuesday Blitz"]
[Site "Chess.com"]
[Date "2020.10.20"]
[Round "1"]
[White "11kevin"]
[Black "jlmanzanares"]
[Result "1-0"]
[WhiteElo "2579"]
[BlackElo "2257"]
[TimeControl "180+1"]
[EndTime "10:07:02 PDT"]
[Termination "11kevin won by resignation"]

1. d4 {[%clk 0:02:59.7]} 1... Nf6 {[%clk 0:02:59]} 2. c4 {[%clk 0:02:59.4]} 2...
g6 {[%clk 0:02:59.1]} 3. g3 {[%clk 0:02:58.8]} 3... Bg7 {[%clk 0:02:59.1]} 4.
Bg2 {[%clk 0:02:59.3]} 4... O-O {[%clk 0:03:00]} 5. Nc3 {[%clk 0:02:58.6]} 5...
d6 {[%clk 0:03:00.9]} 6. Nf3 {[%clk 0:02:58.4]} 6... Nbd7 {[%clk 0:03:01.8]} 7.
O-O {[%clk 0:02:58.6]} 7... c6 {[%clk 0:03:01.7]} 8. e4 {[%clk 0:02:58.5]} 8...
e5 {[%clk 0:03:01.4]} 9. h3 {[%clk 0:02:55.1]} 9... Qb6 {[%clk 0:03:00.6]} 10.
d5 {[%clk 0:02:46.3]} 10... c5 {[%clk 0:02:43.9]} 11. a3 {[%clk 0:02:42.5]}
11... Ne8 {[%clk 0:02:43]} 12. Rb1 {[%clk 0:02:28.7]} 12... a5 {[%clk 0:02:39]}
13. Nb5 {[%clk 0:02:25]} 13... f5 {[%clk 0:02:37.4]} 14. Ng5 {[%clk 0:02:20.3]}
14... Ndf6 {[%clk 0:02:36]} 15. Kh2 {[%clk 0:02:01.7]} 15... h6 {[%clk
0:02:19.7]} 16. Ne6 {[%clk 0:02:00.5]} 16... Bxe6 {[%clk 0:02:18.8]} 17. dxe6
{[%clk 0:02:01.4]} 17... fxe4 {[%clk 0:02:19]} 18. Nc3 {[%clk 0:01:54]} 18...
Kh7 {[%clk 0:02:01.9]} 19. Nxe4 {[%clk 0:01:50]} 19... Nxe4 {[%clk 0:01:59]} 20.
Bxe4 {[%clk 0:01:50.9]} 20... Nf6 {[%clk 0:01:59]} 21. Bg2 {[%clk 0:01:50.3]}
21... Qd8 {[%clk 0:01:33.5]} 22. Bxb7 {[%clk 0:01:44.4]} 22... Rb8 {[%clk
0:01:31.1]} 23. Bd5 {[%clk 0:01:44.5]} 23... Qe7 {[%clk 0:01:29.9]} 24. Bd2
{[%clk 0:01:42.5]} 24... a4 {[%clk 0:01:17.3]} 25. Qxa4 {[%clk 0:01:38.1]} 25...
Nh5 {[%clk 0:01:12.5]} 26. Qc2 {[%clk 0:01:31.4]} 26... Rf6 {[%clk 0:00:58.8]}
27. Be3 {[%clk 0:01:24.3]} 27... Rbf8 {[%clk 0:00:57.6]} 28. Qe2 {[%clk
0:01:24.2]} 28... Rf5 {[%clk 0:00:38.7]} 29. b4 {[%clk 0:01:16.4]} 29... cxb4
{[%clk 0:00:37.4]} 30. axb4 {[%clk 0:01:16]} 30... e4 {[%clk 0:00:33]} 31. Bxe4
{[%clk 0:01:14.4]} 31... Re5 {[%clk 0:00:32.3]} 32. Bd5 {[%clk 0:01:10.8]} 32...
Nf4 {[%clk 0:00:25.3]} 33. gxf4 {[%clk 0:01:09.9]} 33... Rxf4 {[%clk 0:00:25.4]}
34. Qd3 {[%clk 0:01:08.4]} 34... Rh4 {[%clk 0:00:20.1]} 35. Rg1 {[%clk 0:00:54]}
35... Reh5 {[%clk 0:00:19.1]} 36. Qxg6+ {[%clk 0:00:53]} 36... Kh8 {[%clk
0:00:16.1]} 37. Rg3 {[%clk 0:00:52.3]} 37... Qf6 {[%clk 0:00:12.5]} 38. Qxf6
{[%clk 0:00:48]} 38... Bxf6 {[%clk 0:00:13.4]} 39. f4 {[%clk 0:00:43.9]} 39...
Be7 {[%clk 0:00:08]} 40. Rbg1 {[%clk 0:00:42.1]} 1-0

[Event "*** Titled Tuesday Blitz"]
[Site "Chess.com"]
[Date "2020.10.20"]
[Round "1"]
[White "Grieve72"]
[Black "Zhigalko_Sergei"]
[Result "0-1"]
[WhiteElo "2449"]
[BlackElo "2942"]
[TimeControl "180+1"]
[EndTime "10:07:07 PDT"]
[Termination "Zhigalko_Sergei won on time"]

1. e4 {[%clk 0:02:58.9]} 1... c5 {[%clk 0:02:59.1]} 2. Nf3 {[%clk 0:02:55.9]}
2... Nc6 {[%clk 0:02:59]} 3. d4 {[%clk 0:02:55.7]} 3... cxd4 {[%clk 0:02:59.4]}
4. Nxd4 {[%clk 0:02:56.3]} 4... Nf6 {[%clk 0:02:59.6]} 5. Nc3 {[%clk 0:02:56.1]}
5... e5 {[%clk 0:02:59.5]} 6. Ndb5 {[%clk 0:02:56.2]} 6... d6 {[%clk 0:02:59.8]}
7. Bg5 {[%clk 0:02:56.3]} 7... a6 {[%clk 0:03:00]} 8. Na3 {[%clk 0:02:56.6]}
8... b5 {[%clk 0:03:00.2]} 9. Nd5 {[%clk 0:02:57]} 9... Be7 {[%clk 0:03:00.2]}
10. Bxf6 {[%clk 0:02:57.3]} 10... Bxf6 {[%clk 0:03:00.6]} 11. c3 {[%clk
0:02:57.8]} 11... Bg5 {[%clk 0:03:00.6]} 12. Nc2 {[%clk 0:02:57.2]} 12... Ne7
{[%clk 0:03:00.9]} 13. Be2 {[%clk 0:02:48.7]} 13... O-O {[%clk 0:02:59.8]} 14.
O-O {[%clk 0:02:45.6]} 14... Nxd5 {[%clk 0:03:00]} 15. Qxd5 {[%clk 0:02:39.1]}
15... Be6 {[%clk 0:03:00.3]} 16. Qd3 {[%clk 0:02:31.8]} 16... Qb6 {[%clk
0:02:59.8]} 17. Nb4 {[%clk 0:02:21.6]} 17... Kh8 {[%clk 0:02:52.8]} 18. Rfd1
{[%clk 0:02:09.1]} 18... Rad8 {[%clk 0:02:46.6]} 19. a4 {[%clk 0:02:02.3]} 19...
f5 {[%clk 0:02:28.6]} 20. Bf3 {[%clk 0:01:23]} 20... d5 {[%clk 0:02:12]} 21.
exf5 {[%clk 0:00:52]} 21... Bxf5 {[%clk 0:01:41.4]} 22. Nxd5 {[%clk 0:00:48.6]}
22... Bxd3 {[%clk 0:01:11.3]} 23. Nxb6 {[%clk 0:00:47.6]} 23... e4 {[%clk
0:01:12.2]} 24. Bg4 {[%clk 0:00:40.4]} 24... e3 {[%clk 0:01:12.6]} 25. fxe3
{[%clk 0:00:37.7]} 25... Bxe3+ {[%clk 0:01:12.8]} 26. Kh1 {[%clk 0:00:38]} 26...
Bxb6 {[%clk 0:01:13.7]} 27. axb5 {[%clk 0:00:31.7]} 27... axb5 {[%clk
0:01:09.9]} 28. h3 {[%clk 0:00:28.3]} 28... g6 {[%clk 0:00:59.7]} 29. Ra6 {[%clk
0:00:26]} 29... Bc7 {[%clk 0:00:47.6]} 30. Ra7 {[%clk 0:00:25.1]} 30... Bg3
{[%clk 0:00:46]} 31. Bf3 {[%clk 0:00:22.7]} 31... Bc4 {[%clk 0:00:38.9]} 32.
Rda1 {[%clk 0:00:12.2]} 32... Rfe8 {[%clk 0:00:31.2]} 33. Rb7 {[%clk 0:00:06.9]}
33... Re5 {[%clk 0:00:25.2]} 34. Rb6 {[%clk 0:00:01.8]} 34... Rde8 {[%clk
0:00:24]} 0-1